[Event "Titled Tuesday Blitz June 20 Late 2023"]
[White "Xu, Yi"]
[Black "Yeritsyan, Hayk"]
[WhiteFideId "8605564"]
[BlackFideId "13307320"]
[WhiteElo "2460"]
[BlackElo "2451"]
[Result "1-0"]
[Round "9"]
[TimeControl "180+2"]
[Date "2023.06.20"]
[WhiteClock "0:00:39"]
[BlackClock "0:00:14"]
[Board "78"]

1. d4 {[%clk 0:03:00]}  d5 {[%clk 0:02:48]} 2. c4 {[%clk 0:03:01]}  e6 {[%clk 0:02:47]} 3. Nf3 {[%clk 0:03:01]}  Nf6 {[%clk 0:02:47]} 4. Nc3 {[%clk 0:02:59]}  Nbd7 {[%clk 0:02:47]} 5. Bf4 {[%clk 0:02:57]}  c6 {[%clk 0:02:47]} 6. e3 {[%clk 0:02:57]}  Qa5 {[%clk 0:02:48]} 7. a3 {[%clk 0:02:48]}  Ne4 {[%clk 0:02:33]} 8. Qc2 {[%clk 0:02:46]}  Bb4 {[%clk 0:02:30]} 9. Rc1 {[%clk 0:02:20]}  Bxc3+ {[%clk 0:02:26]} 10. bxc3 {[%clk 0:02:20]}  Qxa3 {[%clk 0:02:27]} 11. Bd3 {[%clk 0:02:21]}  Nef6 {[%clk 0:02:24]} 12. c5 {[%clk 0:02:14]}  Qa5 {[%clk 0:02:23]} 13. Bd6 {[%clk 0:02:11]}  b6 {[%clk 0:02:09]} 14. O-O {[%clk 0:01:50]}  bxc5 {[%clk 0:02:00]} 15. dxc5 {[%clk 0:01:45]}  Qd8 {[%clk 0:01:40]} 16. Nd4 {[%clk 0:01:42]}  Nb8 {[%clk 0:01:24]} 17. Qb3 {[%clk 0:01:23]}  Nfd7 {[%clk 0:01:08]} 18. Rb1 {[%clk 0:01:00]}  g6 {[%clk 0:01:05]} 19. Qc2 {[%clk 0:00:51]}  e5 {[%clk 0:01:04]} 20. Ne6 {[%clk 0:00:49]}  Qh4 {[%clk 0:00:20]} 21. Nc7+ {[%clk 0:00:47]}  Kd8 {[%clk 0:00:21]} 22. Nxa8 {[%clk 0:00:46]}  e4 {[%clk 0:00:19]} 23. Be2 {[%clk 0:00:39]}  Na6 {[%clk 0:00:18]} 24. Qa4 {[%clk 0:00:39]}  Naxc5 {[%clk 0:00:17]} 25. Bxc5 {[%clk 0:00:38]}  Nxc5 {[%clk 0:00:14]} 26. Qa5+ {[%clk 0:00:39]} 1-0


[Site "https://www.chess.com"]

[Event "Titled Tuesday Blitz June 20 Late 2023"]
[White "Jiang, Andrew"]
[Black "Hambleton, Aman"]
[WhiteFideId "30953510"]
[BlackFideId "2606577"]
[WhiteElo "1883"]
[BlackElo "2511"]
[Result "1-0"]
[Round "9"]
[TimeControl "180+2"]
[Date "2023.06.20"]
[WhiteClock "0:00:09"]
[BlackClock "0:00:02"]
[Board "79"]

1. e4 {[%clk 0:03:00]}  c5 {[%clk 0:02:58]} 2. c3 {[%clk 0:03:00]}  Nf6 {[%clk 0:02:58]} 3. e5 {[%clk 0:03:00]}  Nd5 {[%clk 0:02:59]} 4. Nf3 {[%clk 0:03:00]}  Nc6 {[%clk 0:02:58]} 5. Bc4 {[%clk 0:02:59]}  Nb6 {[%clk 0:02:59]} 6. Bb3 {[%clk 0:03:00]}  d5 {[%clk 0:02:58]} 7. exd6 {[%clk 0:02:59]}  exd6 {[%clk 0:02:57]} 8. d4 {[%clk 0:02:58]}  Be7 {[%clk 0:02:55]} 9. O-O {[%clk 0:02:54]}  O-O {[%clk 0:02:55]} 10. Be3 {[%clk 0:02:47]}  Bf5 {[%clk 0:02:48]} 11. Nbd2 {[%clk 0:02:43]}  Bd3 {[%clk 0:02:37]} 12. Re1 {[%clk 0:02:39]}  c4 {[%clk 0:02:38]} 13. Bc2 {[%clk 0:02:37]}  Bxc2 {[%clk 0:02:38]} 14. Qxc2 {[%clk 0:02:37]}  d5 {[%clk 0:02:39]} 15. Nf1 {[%clk 0:02:36]}  Bd6 {[%clk 0:02:30]} 16. Ng3 {[%clk 0:02:29]}  Bxg3 {[%clk 0:02:28]} 17. hxg3 {[%clk 0:02:26]}  Qf6 {[%clk 0:02:28]} 18. Bf4 {[%clk 0:02:21]}  Rfe8 {[%clk 0:02:27]} 19. a4 {[%clk 0:02:17]}  Na5 {[%clk 0:02:13]} 20. Ne5 {[%clk 0:02:12]}  Nb3 {[%clk 0:02:11]} 21. Ra3 {[%clk 0:02:06]}  a5 {[%clk 0:01:49]} 22. Re3 {[%clk 0:02:04]}  Re6 {[%clk 0:01:35]} 23. Rxb3 {[%clk 0:01:58]}  cxb3 {[%clk 0:01:34]} 24. Qxb3 {[%clk 0:01:59]}  Qe7 {[%clk 0:01:13]} 25. Ng4 {[%clk 0:01:15]}  h5 {[%clk 0:00:22]} 26. Ne5 {[%clk 0:00:55]}  Qe8 {[%clk 0:00:13]} 27. Qd1 {[%clk 0:00:47]}  f6 {[%clk 0:00:09]} 28. Nd3 {[%clk 0:00:45]}  Rxe3 {[%clk 0:00:09]} 29. Bxe3 {[%clk 0:00:43]}  Nxa4 {[%clk 0:00:08]} 30. b3 {[%clk 0:00:40]}  Nxc3 {[%clk 0:00:07]} 31. Qc2 {[%clk 0:00:39]}  Rc8 {[%clk 0:00:05]} 32. Nc5 {[%clk 0:00:38]}  Ne4 {[%clk 0:00:02]} 33. Qa2 {[%clk 0:00:37]}  b6 {[%clk 0:00:02]} 34. Nd3 {[%clk 0:00:36]}  Qc6 {[%clk 0:00:03]} 35. Nf4 {[%clk 0:00:35]}  g5 {[%clk 0:00:03]} 36. Nxh5 {[%clk 0:00:35]}  Kf7 {[%clk 0:00:03]} 37. f3 {[%clk 0:00:32]}  Qc2 {[%clk 0:00:03]} 38. Qa4 {[%clk 0:00:28]}  Qd3 {[%clk 0:00:02]} 39. Qd7+ {[%clk 0:00:28]}  Kg6 {[%clk 0:00:02]} 40. Qg7+ {[%clk 0:00:27]}  Kf5 {[%clk 0:00:03]} 41. Qd7+ {[%clk 0:00:14]}  Kg6 {[%clk 0:00:03]} 42. Qg7+ {[%clk 0:00:10]}  Kf5 {[%clk 0:00:03]} 43. fxe4+ {[%clk 0:00:11]}  Kxe4 {[%clk 0:00:01]} 44. Qe7+ {[%clk 0:00:10]}  Kf5 {[%clk 0:00:02]} 45. Qxf6+ {[%clk 0:00:11]}  Kg4 {[%clk 0:00:02]} 46. Qxg5# {[%clk 0:00:09]} 1-0


[Site "https://www.chess.com"]

[Event "Titled Tuesday Blitz June 20 Late 2023"]
[White "ArchibaldCerveza29"]
[Black "Hajiyev, Kanan"]
[BlackFideId "13404148"]
[WhiteElo "2437"]
[BlackElo "2115"]
[Result "1-0"]
[Round "9"]
[TimeControl "180+2"]
[Date "2023.06.20"]
[WhiteClock "0:00:21"]
[BlackClock "0:00:14"]
[Board "80"]

1. e4 {[%clk 0:03:00]}  c6 {[%clk 0:03:00]} 2. d4 {[%clk 0:02:59]}  d5 {[%clk 0:03:00]} 3. exd5 {[%clk 0:02:59]}  cxd5 {[%clk 0:03:01]} 4. c4 {[%clk 0:02:59]}  Nf6 {[%clk 0:03:02]} 5. Nc3 {[%clk 0:02:59]}  e6 {[%clk 0:03:03]} 6. Nf3 {[%clk 0:02:59]}  Bb4 {[%clk 0:03:03]} 7. Bd3 {[%clk 0:02:57]}  dxc4 {[%clk 0:03:03]} 8. Bxc4 {[%clk 0:02:58]}  O-O {[%clk 0:03:03]} 9. O-O {[%clk 0:02:59]}  Nc6 {[%clk 0:03:04]} 10. Re1 {[%clk 0:02:59]}  b6 {[%clk 0:03:03]} 11. a3 {[%clk 0:02:59]}  Be7 {[%clk 0:03:03]} 12. Bd3 {[%clk 0:02:59]}  Bb7 {[%clk 0:03:02]} 13. Bc2 {[%clk 0:03:00]}  Rc8 {[%clk 0:03:01]} 14. Qd3 {[%clk 0:03:00]}  g6 {[%clk 0:03:01]} 15. Bh6 {[%clk 0:03:00]}  Re8 {[%clk 0:03:01]} 16. Ba4 {[%clk 0:03:00]}  Nd5 {[%clk 0:02:50]} 17. h4 {[%clk 0:02:48]}  Nxc3 {[%clk 0:02:49]} 18. bxc3 {[%clk 0:02:45]}  Bxh4 {[%clk 0:02:42]} 19. c4 {[%clk 0:02:29]}  Bf6 {[%clk 0:02:34]} 20. Rad1 {[%clk 0:02:29]}  Re7 {[%clk 0:02:22]} 21. Bf4 {[%clk 0:02:03]}  Na5 {[%clk 0:02:10]} 22. Bg5 {[%clk 0:01:40]}  Rec7 {[%clk 0:01:49]} 23. Bxf6 {[%clk 0:01:36]}  Qxf6 {[%clk 0:01:50]} 24. d5 {[%clk 0:01:35]}  Rxc4 {[%clk 0:01:36]} 25. Bd7 {[%clk 0:01:22]}  Bxd5 {[%clk 0:01:16]} 26. Bxc8 {[%clk 0:01:20]}  Rxc8 {[%clk 0:01:17]} 27. Qd4 {[%clk 0:01:16]}  Qxd4 {[%clk 0:01:15]} 28. Nxd4 {[%clk 0:01:13]}  Rc3 {[%clk 0:01:15]} 29. Nb5 {[%clk 0:01:12]}  Rb3 {[%clk 0:01:10]} 30. Rb1 {[%clk 0:01:10]}  a6 {[%clk 0:00:48]} 31. Nc7 {[%clk 0:01:04]}  Bc4 {[%clk 0:00:44]} 32. Rxb3 {[%clk 0:01:01]}  Nxb3 {[%clk 0:00:43]} 33. Rb1 {[%clk 0:01:01]}  a5 {[%clk 0:00:40]} 34. a4 {[%clk 0:00:51]}  Kf8 {[%clk 0:00:35]} 35. Na8 {[%clk 0:00:45]}  Nd2 {[%clk 0:00:25]} 36. Rb2 {[%clk 0:00:36]}  Ne4 {[%clk 0:00:17]} 37. Nxb6 {[%clk 0:00:36]}  Bd3 {[%clk 0:00:14]} 38. Nd7+ {[%clk 0:00:28]}  Ke7 {[%clk 0:00:14]} 39. Ne5 {[%clk 0:00:29]}  Ba6 {[%clk 0:00:10]} 40. Nc6+ {[%clk 0:00:29]}  Kd6 {[%clk 0:00:10]} 41. Nxa5 {[%clk 0:00:30]}  Nc5 {[%clk 0:00:06]} 42. Rb6+ {[%clk 0:00:25]}  Kd5 {[%clk 0:00:07]} 43. Nb3 {[%clk 0:00:23]}  Bc4 {[%clk 0:00:03]} 44. Nxc5 {[%clk 0:00:22]}  Kxc5 {[%clk 0:00:04]} 45. Rb7 {[%clk 0:00:23]}  e5 {[%clk 0:00:04]} 46. f3 {[%clk 0:00:21]}  h5 {[%clk 0:00:04]} 47. a5 {[%clk 0:00:20]}  Bd5 {[%clk 0:00:05]} 48. Rb8 {[%clk 0:00:19]}  Bc4 {[%clk 0:00:04]} 49. Kf2 {[%clk 0:00:19]}  Bd3 {[%clk 0:00:04]} 50. Ke3 {[%clk 0:00:19]}  e4 {[%clk 0:00:04]} 51. fxe4 {[%clk 0:00:18]}  Bc4 {[%clk 0:00:05]} 52. Kf4 {[%clk 0:00:18]}  Bb5 {[%clk 0:00:05]} 53. g3 {[%clk 0:00:18]}  f6 {[%clk 0:00:06]} 54. Rb6 {[%clk 0:00:18]}  g5+ {[%clk 0:00:06]} 55. Kf5 {[%clk 0:00:17]}  Bd3 {[%clk 0:00:06]} 56. Rxf6 {[%clk 0:00:16]}  h4 {[%clk 0:00:07]} 57. g4 {[%clk 0:00:16]}  h3 {[%clk 0:00:07]} 58. Rh6 {[%clk 0:00:17]}  Bf1 {[%clk 0:00:07]} 59. a6 {[%clk 0:00:17]}  h2 {[%clk 0:00:06]} 60. a7 {[%clk 0:00:14]}  Bg2 {[%clk 0:00:06]} 61. a8=Q {[%clk 0:00:14]}  h1=Q {[%clk 0:00:07]} 62. Rxh1 {[%clk 0:00:14]}  Bxh1 {[%clk 0:00:08]} 63. Qd5+ {[%clk 0:00:14]}  Kb4 {[%clk 0:00:08]} 64. Kxg5 {[%clk 0:00:15]}  Kc3 {[%clk 0:00:08]} 65. Kf4 {[%clk 0:00:15]}  Kc2 {[%clk 0:00:08]} 66. Qe5 {[%clk 0:00:16]}  Bg2 {[%clk 0:00:08]} 67. g5 {[%clk 0:00:16]}  Bf1 {[%clk 0:00:08]} 68. g6 {[%clk 0:00:17]}  Bc4 {[%clk 0:00:08]} 69. g7 {[%clk 0:00:18]}  Kb3 {[%clk 0:00:09]} 70. Qd4 {[%clk 0:00:18]}  Bf7 {[%clk 0:00:09]} 71. Qb6+ {[%clk 0:00:18]}  Kc3 {[%clk 0:00:09]} 72. Qc7+ {[%clk 0:00:18]}  Bc4 {[%clk 0:00:08]} 73. Qxc4+ {[%clk 0:00:18]}  Kxc4 {[%clk 0:00:09]} 74. g8=Q+ {[%clk 0:00:19]}  Kd4 {[%clk 0:00:09]} 75. Qd5+ {[%clk 0:00:19]}  Kc3 {[%clk 0:00:10]} 76. e5 {[%clk 0:00:20]}  Kb4 {[%clk 0:00:11]} 77. e6 {[%clk 0:00:21]}  Kc3 {[%clk 0:00:11]} 78. e7 {[%clk 0:00:22]}  Kb4 {[%clk 0:00:12]} 79. e8=Q {[%clk 0:00:22]}  Ka3 {[%clk 0:00:12]} 80. Qb8 {[%clk 0:00:20]}  Ka4 {[%clk 0:00:13]} 81. Qdb5+ {[%clk 0:00:20]}  Ka3 {[%clk 0:00:14]} 82. Qb3# {[%clk 0:00:21]} 1-0


[Site "https://www.chess.com"]

[Event "Titled Tuesday Blitz June 20 Late 2023"]
[White "Seletsky, Grigory"]
[Black "Shapiro, Viktor"]
[WhiteFideId "14112191"]
[BlackFideId "4175700"]
[WhiteElo "2491"]
[BlackElo "2212"]
[Result "1/2-1/2"]
[Round "9"]
[TimeControl "180+2"]
[Date "2023.06.20"]
[WhiteClock "0:00:11"]
[BlackClock "0:00:11"]
[Board "81"]

1. e4 {[%clk 0:02:53]}  c5 {[%clk 0:02:59]} 2. Nf3 {[%clk 0:02:52]}  d6 {[%clk 0:02:59]} 3. c3 {[%clk 0:02:52]}  Nf6 {[%clk 0:02:59]} 4. Bd3 {[%clk 0:02:52]}  Nc6 {[%clk 0:02:58]} 5. O-O {[%clk 0:02:53]}  e6 {[%clk 0:02:56]} 6. Re1 {[%clk 0:02:53]}  Be7 {[%clk 0:02:56]} 7. Bc2 {[%clk 0:02:53]}  O-O {[%clk 0:02:57]} 8. d4 {[%clk 0:02:54]}  cxd4 {[%clk 0:02:57]} 9. cxd4 {[%clk 0:02:55]}  e5 {[%clk 0:02:57]} 10. h3 {[%clk 0:02:44]}  a5 {[%clk 0:02:51]} 11. Nc3 {[%clk 0:02:44]}  Bd7 {[%clk 0:02:42]} 12. d5 {[%clk 0:02:37]}  Nb4 {[%clk 0:02:41]} 13. Bb1 {[%clk 0:02:33]}  Rc8 {[%clk 0:02:41]} 14. a3 {[%clk 0:02:33]}  Na6 {[%clk 0:02:41]} 15. Be3 {[%clk 0:02:28]}  b5 {[%clk 0:02:39]} 16. Bd3 {[%clk 0:02:27]}  Rb8 {[%clk 0:02:36]} 17. Rb1 {[%clk 0:02:21]}  b4 {[%clk 0:02:23]} 18. Bxa6 {[%clk 0:02:19]}  bxc3 {[%clk 0:02:23]} 19. bxc3 {[%clk 0:02:19]}  Nxe4 {[%clk 0:02:21]} 20. Qd3 {[%clk 0:01:53]}  f5 {[%clk 0:02:14]} 21. Nd2 {[%clk 0:01:46]}  Nxd2 {[%clk 0:01:56]} 22. Bxd2 {[%clk 0:01:39]}  Qc7 {[%clk 0:01:55]} 23. Bb5 {[%clk 0:01:33]}  e4 {[%clk 0:01:43]} 24. Qe2 {[%clk 0:01:28]}  Bf6 {[%clk 0:01:34]} 25. c4 {[%clk 0:01:21]}  a4 {[%clk 0:01:26]} 26. Rec1 {[%clk 0:01:15]}  Rfc8 {[%clk 0:01:25]} 27. Bb4 {[%clk 0:01:05]}  Be5 {[%clk 0:01:15]} 28. Bxd7 {[%clk 0:00:58]}  Qxd7 {[%clk 0:01:15]} 29. f3 {[%clk 0:00:54]}  Bf4 {[%clk 0:00:45]} 30. Rc2 {[%clk 0:00:45]}  Re8 {[%clk 0:00:44]} 31. Rd1 {[%clk 0:00:43]}  Rbc8 {[%clk 0:00:39]} 32. c5 {[%clk 0:00:42]}  exf3 {[%clk 0:00:34]} 33. Qxf3 {[%clk 0:00:39]}  Be3+ {[%clk 0:00:35]} 34. Kh1 {[%clk 0:00:39]}  dxc5 {[%clk 0:00:35]} 35. Bc3 {[%clk 0:00:31]}  Bh6 {[%clk 0:00:25]} 36. d6 {[%clk 0:00:29]}  Re4 {[%clk 0:00:25]} 37. Qd3 {[%clk 0:00:25]}  Qf7 {[%clk 0:00:16]} 38. d7 {[%clk 0:00:24]}  Rd8 {[%clk 0:00:16]} 39. Ba5 {[%clk 0:00:24]}  c4 {[%clk 0:00:17]} 40. Qd5 {[%clk 0:00:20]}  Qxd5 {[%clk 0:00:16]} 41. Rxd5 {[%clk 0:00:20]}  Bg5 {[%clk 0:00:15]} 42. Bxd8 {[%clk 0:00:19]}  Bxd8 {[%clk 0:00:16]} 43. Rxf5 {[%clk 0:00:18]}  Rd4 {[%clk 0:00:16]} 44. Rc5 {[%clk 0:00:14]}  Rxd7 {[%clk 0:00:15]} 45. R5xc4 {[%clk 0:00:14]}  Bf6 {[%clk 0:00:13]} 46. g4 {[%clk 0:00:13]}  Kf7 {[%clk 0:00:13]} 47. Kg2 {[%clk 0:00:13]}  Rd3 {[%clk 0:00:13]} 48. Rxa4 {[%clk 0:00:13]}  h5 {[%clk 0:00:11]} 49. Rf2 {[%clk 0:00:13]}  hxg4 {[%clk 0:00:11]} 50. hxg4 {[%clk 0:00:13]}  Kg6 {[%clk 0:00:12]} 51. Ra6 {[%clk 0:00:12]}  Kg5 {[%clk 0:00:12]} 52. Raxf6 {[%clk 0:00:12]}  gxf6 {[%clk 0:00:12]} 53. Rf3 {[%clk 0:00:13]}  Rd4 {[%clk 0:00:10]} 54. Kh3 {[%clk 0:00:12]}  Ra4 {[%clk 0:00:09]} 55. Rf5+ {[%clk 0:00:12]}  Kg6 {[%clk 0:00:10]} 56. Rf3 {[%clk 0:00:13]}  Kg5 {[%clk 0:00:10]} 57. Rf5+ {[%clk 0:00:12]}  Kg6 {[%clk 0:00:11]} 58. Rf3 {[%clk 0:00:11]}  Kg5 {[%clk 0:00:11]} 1/2-1/2


[Site "https://www.chess.com"]

[Event "Titled Tuesday Blitz June 20 Late 2023"]
[White "KorolDimitriy75"]
[Black "Ismayil, Malak"]
[BlackFideId "13412604"]
[WhiteElo "2422"]
[BlackElo "1868"]
[Result "1/2-1/2"]
[Round "9"]
[TimeControl "180+2"]
[Date "2023.06.20"]
[WhiteClock "0:00:16"]
[BlackClock "0:00:31"]
[Board "82"]

1. d4 {[%clk 0:03:00]}  Nf6 {[%clk 0:02:59]} 2. c4 {[%clk 0:03:01]}  e6 {[%clk 0:02:59]} 3. Nc3 {[%clk 0:03:01]}  Bb4 {[%clk 0:02:59]} 4. Qc2 {[%clk 0:03:01]}  O-O {[%clk 0:02:58]} 5. e4 {[%clk 0:03:01]}  d5 {[%clk 0:02:58]} 6. cxd5 {[%clk 0:03:02]}  exd5 {[%clk 0:02:57]} 7. e5 {[%clk 0:03:03]}  Ne4 {[%clk 0:02:55]} 8. Bd3 {[%clk 0:03:03]}  f5 {[%clk 0:02:52]} 9. Ne2 {[%clk 0:03:00]}  c5 {[%clk 0:02:45]} 10. O-O {[%clk 0:02:58]}  c4 {[%clk 0:02:41]} 11. Bxe4 {[%clk 0:02:35]}  fxe4 {[%clk 0:02:42]} 12. b3 {[%clk 0:02:26]}  Bxc3 {[%clk 0:02:34]} 13. Nxc3 {[%clk 0:02:23]}  Bf5 {[%clk 0:02:29]} 14. Be3 {[%clk 0:01:43]}  Nc6 {[%clk 0:02:14]} 15. bxc4 {[%clk 0:01:41]}  dxc4 {[%clk 0:02:15]} 16. Nxe4 {[%clk 0:01:33]}  Qd5 {[%clk 0:01:49]} 17. Nc3 {[%clk 0:01:07]}  Bxc2 {[%clk 0:01:27]} 18. Nxd5 {[%clk 0:01:07]}  Rad8 {[%clk 0:01:27]} 19. Nf4 {[%clk 0:00:58]}  Nxd4 {[%clk 0:01:20]} 20. Bxd4 {[%clk 0:00:56]}  Rxf4 {[%clk 0:01:17]} 21. Bxa7 {[%clk 0:00:54]}  Re4 {[%clk 0:01:10]} 22. Rfe1 {[%clk 0:00:43]}  Rxe1+ {[%clk 0:00:47]} 23. Rxe1 {[%clk 0:00:44]}  Rd1 {[%clk 0:00:47]} 24. Rxd1 {[%clk 0:00:39]}  Bxd1 {[%clk 0:00:48]} 25. Bd4 {[%clk 0:00:33]}  Kf7 {[%clk 0:00:45]} 26. f4 {[%clk 0:00:30]}  Bc2 {[%clk 0:00:44]} 27. Kf2 {[%clk 0:00:27]}  b5 {[%clk 0:00:41]} 28. a3 {[%clk 0:00:26]}  Ke6 {[%clk 0:00:40]} 29. Ke3 {[%clk 0:00:24]}  g6 {[%clk 0:00:37]} 30. g3 {[%clk 0:00:19]}  h5 {[%clk 0:00:36]} 31. Bc3 {[%clk 0:00:17]}  Kd5 {[%clk 0:00:35]} 32. Bb4 {[%clk 0:00:16]}  Bf5 {[%clk 0:00:34]} 33. Bc3 {[%clk 0:00:15]}  Kc5 {[%clk 0:00:32]} 34. Bb4+ {[%clk 0:00:15]}  Kd5 {[%clk 0:00:33]} 35. Bc3 {[%clk 0:00:16]}  Bg4 {[%clk 0:00:34]} 36. Bb4 {[%clk 0:00:15]}  Be6 {[%clk 0:00:33]} 37. Bc3 {[%clk 0:00:15]}  Bf5 {[%clk 0:00:34]} 38. Bb4 {[%clk 0:00:16]}  Be6 {[%clk 0:00:31]} 39. Bc3 {[%clk 0:00:15]}  Bf5 {[%clk 0:00:31]} 40. Bb4 {[%clk 0:00:16]}  Be6 {[%clk 0:00:31]} 1/2-1/2


[Site "https://www.chess.com"]

[Event "Titled Tuesday Blitz June 20 Late 2023"]
[White "Arnold, Ken"]
[Black "Golubev, Mikhail"]
[WhiteFideId "2056836"]
[BlackFideId "14100983"]
[WhiteElo "2404"]
[BlackElo "2374"]
[Result "0-1"]
[Round "9"]
[TimeControl "180+2"]
[Date "2023.06.20"]
[WhiteClock "0:00:00"]
[BlackClock "0:00:11"]
[Board "83"]

1. e4 {[%clk 0:03:00]}  c5 {[%clk 0:02:59]} 2. Nf3 {[%clk 0:03:01]}  d6 {[%clk 0:02:59]} 3. d4 {[%clk 0:03:01]}  Nf6 {[%clk 0:02:59]} 4. dxc5 {[%clk 0:03:01]}  Nxe4 {[%clk 0:02:58]} 5. cxd6 {[%clk 0:03:00]}  Nc6 {[%clk 0:02:58]} 6. Bd3 {[%clk 0:03:00]}  Nxd6 {[%clk 0:02:57]} 7. O-O {[%clk 0:03:00]}  g6 {[%clk 0:02:58]} 8. Bd2 {[%clk 0:02:57]}  Bg7 {[%clk 0:02:57]} 9. Bc3 {[%clk 0:02:57]}  O-O {[%clk 0:02:52]} 10. Re1 {[%clk 0:02:54]}  Nf5 {[%clk 0:02:39]} 11. Bxg7 {[%clk 0:02:50]}  Kxg7 {[%clk 0:02:38]} 12. c3 {[%clk 0:02:45]}  Qc7 {[%clk 0:02:33]} 13. Qe2 {[%clk 0:02:40]}  Re8 {[%clk 0:02:22]} 14. Nbd2 {[%clk 0:02:36]}  e5 {[%clk 0:02:21]} 15. Bb5 {[%clk 0:02:34]}  Bd7 {[%clk 0:02:16]} 16. Rad1 {[%clk 0:02:30]}  a6 {[%clk 0:02:13]} 17. Bxc6 {[%clk 0:02:29]}  Bxc6 {[%clk 0:02:12]} 18. Nf1 {[%clk 0:02:24]}  f6 {[%clk 0:02:09]} 19. Ne3 {[%clk 0:02:23]}  Nxe3 {[%clk 0:02:07]} 20. Qxe3 {[%clk 0:02:22]}  Rad8 {[%clk 0:02:07]} 21. h3 {[%clk 0:02:10]}  h5 {[%clk 0:02:03]} 22. b3 {[%clk 0:01:54]}  Rd7 {[%clk 0:02:00]} 23. Rxd7+ {[%clk 0:01:52]}  Qxd7 {[%clk 0:01:59]} 24. c4 {[%clk 0:01:35]}  Rd8 {[%clk 0:01:56]} 25. Nh2 {[%clk 0:01:17]}  Qd3 {[%clk 0:01:48]} 26. Qb6 {[%clk 0:01:08]}  Rd7 {[%clk 0:01:48]} 27. Nf1 {[%clk 0:01:05]}  Qc3 {[%clk 0:01:38]} 28. Qe3 {[%clk 0:00:45]}  Qxe3 {[%clk 0:01:37]} 29. fxe3 {[%clk 0:00:44]}  f5 {[%clk 0:01:32]} 30. Kf2 {[%clk 0:00:44]}  Be4 {[%clk 0:01:28]} 31. Re2 {[%clk 0:00:42]}  Rd1 {[%clk 0:01:23]} 32. Rd2 {[%clk 0:00:41]}  Rxd2+ {[%clk 0:01:18]} 33. Nxd2 {[%clk 0:00:41]}  Bd3 {[%clk 0:01:18]} 34. h4 {[%clk 0:00:39]}  Kf6 {[%clk 0:01:17]} 35. g3 {[%clk 0:00:38]}  g5 {[%clk 0:01:15]} 36. hxg5+ {[%clk 0:00:32]}  Kxg5 {[%clk 0:01:15]} 37. Nf3+ {[%clk 0:00:30]}  Kf6 {[%clk 0:01:15]} 38. a3 {[%clk 0:00:27]}  e4 {[%clk 0:01:09]} 39. Nd4 {[%clk 0:00:26]}  b6 {[%clk 0:01:02]} 40. Ke1 {[%clk 0:00:23]}  Kg5 {[%clk 0:01:01]} 41. Kf2 {[%clk 0:00:22]}  a5 {[%clk 0:00:57]} 42. Ne6+ {[%clk 0:00:21]}  Kg4 {[%clk 0:00:52]} 43. Nf4 {[%clk 0:00:20]}  a4 {[%clk 0:00:38]} 44. Nxd3 {[%clk 0:00:16]}  exd3 {[%clk 0:00:37]} 45. b4 {[%clk 0:00:16]}  d2 {[%clk 0:00:29]} 46. Ke2 {[%clk 0:00:15]}  Kxg3 {[%clk 0:00:29]} 47. c5 {[%clk 0:00:15]}  bxc5 {[%clk 0:00:27]} 48. b5 {[%clk 0:00:15]}  f4 {[%clk 0:00:25]} 49. exf4 {[%clk 0:00:12]}  h4 {[%clk 0:00:24]} 50. b6 {[%clk 0:00:13]}  h3 {[%clk 0:00:24]} 51. b7 {[%clk 0:00:14]}  h2 {[%clk 0:00:25]} 52. b8=Q {[%clk 0:00:14]}  h1=Q {[%clk 0:00:25]} 53. f5+ {[%clk 0:00:14]}  Kg4 {[%clk 0:00:24]} 54. Qg8+ {[%clk 0:00:11]}  Kxf5 {[%clk 0:00:23]} 55. Qf7+ {[%clk 0:00:11]}  Ke5 {[%clk 0:00:22]} 56. Qe7+ {[%clk 0:00:11]}  Kd4 {[%clk 0:00:16]} 57. Qf6+ {[%clk 0:00:03]}  Kc4 {[%clk 0:00:14]} 58. Kxd2 {[%clk 0:00:03]}  Qg2+ {[%clk 0:00:12]} 59. Kc1 {[%clk 0:00:02]}  Qg1+ {[%clk 0:00:12]} 60. Kc2 {[%clk 0:00:01]}  Qg2+ {[%clk 0:00:11]} 61. Kb1 {[%clk 0:00:00]}  Qe4+ {[%clk 0:00:11]} 0-1


[Site "https://www.chess.com"]

[Event "Titled Tuesday Blitz June 20 Late 2023"]
[White "Muradov, Soltan"]
[Black "Omariev, Maksim"]
[WhiteFideId "14002108"]
[BlackFideId "4193423"]
[WhiteElo "2163"]
[BlackElo "2416"]
[Result "0-1"]
[Round "9"]
[TimeControl "180+2"]
[Date "2023.06.20"]
[WhiteClock "0:00:00"]
[BlackClock "0:00:14"]
[Board "84"]

1. e4 {[%clk 0:03:00]}  c5 {[%clk 0:02:58]} 2. b3 {[%clk 0:03:00]}  d6 {[%clk 0:02:48]} 3. Bb2 {[%clk 0:03:00]}  e5 {[%clk 0:02:49]} 4. Bb5+ {[%clk 0:02:59]}  Nc6 {[%clk 0:02:48]} 5. Bxc6+ {[%clk 0:02:59]}  bxc6 {[%clk 0:02:48]} 6. f4 {[%clk 0:03:00]}  exf4 {[%clk 0:02:38]} 7. Nf3 {[%clk 0:03:00]}  Ne7 {[%clk 0:02:31]} 8. O-O {[%clk 0:02:57]}  Ng6 {[%clk 0:02:31]} 9. Re1 {[%clk 0:02:35]}  f6 {[%clk 0:02:26]} 10. Nc3 {[%clk 0:02:29]}  Be7 {[%clk 0:02:25]} 11. d4 {[%clk 0:02:26]}  cxd4 {[%clk 0:02:19]} 12. Nxd4 {[%clk 0:02:27]}  Qc7 {[%clk 0:02:00]} 13. Kh1 {[%clk 0:02:11]}  O-O {[%clk 0:01:59]} 14. Nf5 {[%clk 0:02:11]}  Re8 {[%clk 0:01:53]} 15. Qh5 {[%clk 0:02:08]}  Be6 {[%clk 0:01:47]} 16. Rad1 {[%clk 0:01:57]}  Bf8 {[%clk 0:01:39]} 17. Rd3 {[%clk 0:01:36]}  Ne5 {[%clk 0:01:32]} 18. Nd4 {[%clk 0:00:45]}  Bg4 {[%clk 0:01:12]} 19. Qh4 {[%clk 0:00:43]}  g5 {[%clk 0:01:11]} 20. Qf2 {[%clk 0:00:42]}  Nxd3 {[%clk 0:01:11]} 21. cxd3 {[%clk 0:00:43]}  Bg7 {[%clk 0:01:08]} 22. Rc1 {[%clk 0:00:41]}  Qd7 {[%clk 0:01:01]} 23. h3 {[%clk 0:00:32]}  Bxh3 {[%clk 0:00:45]} 24. gxh3 {[%clk 0:00:33]}  Qxh3+ {[%clk 0:00:46]} 25. Kg1 {[%clk 0:00:32]}  Qxd3 {[%clk 0:00:41]} 26. Nf5 {[%clk 0:00:25]}  d5 {[%clk 0:00:39]} 27. Rd1 {[%clk 0:00:20]}  Qh3 {[%clk 0:00:34]} 28. Nd6 {[%clk 0:00:08]}  Re6 {[%clk 0:00:28]} 29. Ba3 {[%clk 0:00:02]}  Bf8 {[%clk 0:00:24]} 30. exd5 {[%clk 0:00:02]}  Re3 {[%clk 0:00:19]} 31. Ne2 {[%clk 0:00:00]}  Qg4+ {[%clk 0:00:14]} 0-1


[Site "https://www.chess.com"]